bitfinex-derivatives/quotes_ETHF0:USTF0_20230104
["timestamp","ask_amount","ask_price","bid_price","bid_amount"]
[1672866203661,2.38937122,1251.1,1251.0,8.41820367]
[1672866208603,5.37571748,1251.1,1251.0,7.00161216]
[1672866208915,2.98634626,1251.1,1251.0,3.39500454]
[1672866209230,2.98634626,1251.1,1251.0,5.7913167]
[1672866209756,4.18008566,1251.1,1251.0,11.41441859]
[1672866210391,2.38854591,1251.1,1251.0,11.41441859]
[1672866211333,4.18029188,1251.1,1251.0,11.41441859]
[1672866213649,2.38854591,1251.1,1251.0,8.41819508]
[1672866214381,4.18043484,1251.1,1251.0,9.01810643]
[1672866214585,1.79188893,1251.1,1251.0,9.01810643]
[1672866214801,2.98655726,1251.1,1251.0,22.00710643]
[1672866215015,2.98655726,1251.1,1251.0,19.01088292]
[1672866215432,1.19466833,1251.1,1251.0,19.01088292]
[1672866219220,1.19425468,1251.1,1251.0,19.01088292]
[1672866219948,2.98614361,1251.1,1251.0,11.02188292]
[1672866220163,2.98614361,1251.1,1251.0,16.51596314]
[1672866220367,2.98614361,1251.1,1251.0,24.50496314]
[1672866221113,2.98614361,1251.1,1251.0,16.51596314]
[1672866221950,1.19425468,1251.1,1251.0,16.51596314]
[1672866222162,1.19425468,1251.1,1251.0,24.50496314]
[1672866223523,1.19425468,1251.1,1251.0,21.51088292]
[1672866224373,1.19425468,1251.1,1251.0,24.50416599]
[1672866224683,1.19425468,1251.1,1251.0,24.50415783]
[1672866225205,2.98614361,1251.1,1251.0,24.50415783]
[1672866225616,1.19425468,1251.1,1251.0,24.50415783]
[1672866226778,1.14603259,1251.2,1251.1,9.80373637]
[1672866226992,0.00068952,1251.3,1251.1,25.58131929]
[1672866227192,0.00068952,1251.3,1251.2,23.590731]
[1672866228243,2.98634626,1251.5,1251.2,23.590731]
[1672866228455,2.98634626,1251.5,1251.4,4.57465732]
[1672866228673,2.98634626,1251.5,1251.4,2.77966293]
[1672866228984,2.98634626,1251.5,1251.4,4.57465732]
[1672866229936,2.98634626,1251.5,1251.4,2.77966293]
[1672866236459,2.98634626,1251.5,1251.4,1.583]
[1672866236669,2.98634626,1251.5,1251.4,2.77966293]
[1672866236876,2.98634626,1251.5,1251.4,1.583]
[1672866239619,5.48634626,1251.6,1251.4,2.77966293]
[1672866239826,5.48634626,1251.6,1251.5,1.593]
[1672866240458,2.98634626,1251.6,1251.5,1.593]
[1672866240769,2.98634626,1251.7,1251.5,4.58465732]
[1672866240986,2.98634626,1251.7,1251.6,7.0933]
[1672866241297,5.48634626,1251.8,1251.6,10.08495732]
[1672866241503,5.48634626,1251.8,1251.7,4.085]
[1672866241718,2.98634626,1251.8,1251.7,4.085]
[1672866241931,5.48634626,1251.9,1251.7,4.085]
[1672866242137,2.98634626,1251.8,1251.7,4.085]
[1672866242451,5.48634626,1251.9,1251.7,4.085]
[1672866242676,2.98634626,1251.8,1251.7,4.085]
[1672866243192,2.98634626,1251.8,1251.7,1.585]
[1672866243408,5.48634626,1251.9,1251.7,2.78166293]
[1672866244034,5.48634626,1251.9,1251.7,1.585]
[1672866245517,2.98634626,1251.8,1251.7,1.585]
[1672866245932,2.98634626,1251.8,1251.7,4.085]
[1672866246140,5.48634626,1251.9,1251.7,4.085]
[1672866246562,5.48634626,1251.9,1251.7,1.585]
[1672866248231,2.98634626,1251.9,1251.7,1.585]
[1672866248447,6.68487409,1252.0,1251.7,1.585]
[1672866248448,6.08434626,1252.0,1251.7,1.585]
[1672866248655,7.08434626,1252.0,1251.7,1.585]
[1672866249710,2.98634626,1251.9,1251.7,1.585]
[1672866250133,2.5,1251.8,1251.7,1.585]
[1672866250663,1.5,1251.9,1251.8,1.598]
[1672866250863,5.48634626,1252.0,1251.8,4.681]
[1672866252024,2.98634626,1252.0,1251.9,1.598]
[1672866252856,8.49364626,1252.1,1251.9,1.598]
[1672866253489,2.98634626,1252.0,1251.9,1.598]
[1672866253695,1.5,1252.0,1251.9,1.598]
[1672866254125,2.98634626,1252.0,1251.9,1.598]
[1672866254335,8.49364626,1252.1,1251.9,1.598]
[1672866255815,1.5,1252.0,1251.9,1.598]
[1672866256131,4.48634626,1252.0,1251.9,1.598]
[1672866256757,6.86801057,1252.0,1251.9,1.598]
[1672866256969,3.88166431,1252.0,1251.9,1.598]
[1672866257182,6.86801057,1252.0,1251.9,1.598]
[1672866257600,3.88166431,1252.0,1251.9,1.598]
[1672866259596,6.86801057,1252.0,1251.9,1.598]
[1672866259804,3.88166431,1252.0,1251.9,1.598]
[1672866260018,6.86801057,1252.0,1251.9,1.598]
[1672866260229,3.88166431,1252.0,1251.9,1.598]
[1672866262016,4.48634626,1252.0,1251.9,1.598]
[1672866263059,6.86868846,1252.0,1251.9,1.598]
[1672866263693,3.8823422,1252.0,1251.9,1.598]
[1672866264115,6.86868846,1252.0,1251.9,1.598]
[1672866264960,6.86868846,1252.0,1251.9,1.586]
[1672866265701,6.86910956,1252.0,1251.9,1.586]
[1672866265908,4.48634626,1252.0,1251.9,1.586]
[1672866266324,6.87001365,1252.0,1251.9,1.586]
[1672866266535,4.48634626,1252.0,1251.9,1.586]
[1672866268222,2.98634626,1252.0,1251.9,1.586]
[1672866268433,2.38381926,1252.0,1251.9,1.586]
[1672866268643,3.88381926,1252.0,1251.9,1.586]
[1672866269057,6.87016552,1252.0,1251.9,1.586]
[1672866269272,6.87016552,1252.0,1251.9,1.585]
[1672866269482,3.88381926,1252.0,1251.9,3.085]
[1672866270000,6.87016552,1252.0,1251.9,3.085]
[1672866270420,6.87016552,1252.0,1251.9,1.585]
[1672866271682,3.88381926,1252.0,1251.9,3.085]
[1672866271892,2.38381926,1252.0,1251.9,1.585]
[1672866272102,2.98634626,1252.0,1251.9,1.585]
[1672866275158,2.3860468,1252.1,1252.0,1.5]
[1672866275370,2.3860468,1252.1,1252.0,4.696]
[1672866275992,2.3860468,1252.1,1252.0,4.39015091]
[1672866276416,2.3860468,1252.1,1252.0,1.598]
[1672866276949,3.8860468,1252.1,1252.0,1.598]
[1672866278105,6.86830894,1252.1,1252.0,2.79215091]
[1672866278515,6.86830894,1252.1,1252.0,1.598]
[1672866278842,3.8860468,1252.1,1252.0,2.79215091]
[1672866279045,2.3860468,1252.1,1252.0,5.79945091]
[1672866279256,2.3860468,1252.1,1252.0,15.28845091]
[1672866279889,2.3860468,1252.1,1252.0,17.0834453]
[1672866280100,2.987469,1252.3,1252.0,30.64598499]
[1672866280315,0.002,1252.3,1252.2,20.18231726]
[1672866280522,2.985469,1252.5,1252.2,18.38962585]
[1672866280731,2.985469,1252.6,1252.4,12.19130686]
[1672866280942,2.985469,1252.6,1252.5,2.5]
[1672866281143,2.985469,1252.6,1252.5,10.489]
[1672866281358,2.985469,1252.6,1252.5,16.68400686]
[1672866281563,2.985469,1252.7,1252.5,16.68400686]
[1672866281779,6.59417409,1252.8,1252.6,3.195]
[1672866281988,3.58687409,1252.8,1252.7,3.098]
[1672866282308,5.48030287,1252.8,1252.7,3.098]
[1672866282725,5.48030287,1252.8,1252.7,1.598]
[1672866282935,5.48030287,1252.8,1252.7,11.087]
[1672866283251,2.98030287,1252.8,1252.7,12.685]
[1672866283468,2.98030287,1252.9,1252.7,12.685]
[1672866283679,5.48030287,1252.9,1252.8,11.176]
[1672866283990,5.48030287,1252.9,1252.8,13.676]
[1672866284191,4.48030287,1253.0,1252.8,13.676]
[1672866284408,4.48030287,1253.0,1252.9,1.598]
[1672866285245,4.48030287,1253.0,1252.8,1.598]
[1672866286292,2.98030287,1253.0,1252.8,1.598]
[1672866286506,2.5,1253.1,1252.9,1.598]
[1672866286507,5.48030287,1253.1,1252.9,1.598]
[1672866288189,5.48030287,1253.1,1252.9,9.587]
[1672866288401,1.78227509,1253.0,1252.9,9.587]
[1672866290191,4.28227509,1253.1,1252.9,9.589]
[1672866291128,4.28227509,1253.1,1253.0,1.583]
[1672866291974,1.78227509,1253.1,1253.0,1.583]
[1672866292186,4.28227509,1253.2,1253.0,1.583]
[1672866292392,1.78227509,1253.2,1253.1,1.593]
[1672866292711,7.28227509,1253.3,1253.1,1.593]
[1672866293547,17.98812911,1253.2,1253.0,1.586]
[1672866293760,1.1814,1252.9,1252.3,16.42059331]
[1672866293970,3.0073,1252.8,1252.4,10.9963]
[1672866294178,2.5,1252.7,1252.5,2.5]
[1672866294492,2.5,1252.7,1252.3,5.0]
[1672866294703,2.5,1252.7,1252.3,1.594]
[1672866294912,4.6053,1252.6,1252.2,1.584]
[1672866295121,4.6053,1252.6,1252.3,2.5]
[1672866295329,2.5,1252.5,1252.2,1.584]
[1672866296375,2.5,1252.5,1252.2,4.5913]
[1672866301117,4.098,1252.5,1252.2,3.0073]
[1672866303743,3.0073,1252.4,1252.1,12.087]
[1672866304060,2.5,1252.7,1252.3,17.083]
[1672866304376,2.5,1252.7,1252.6,3.084]
[1672866304792,5.5073,1252.8,1252.6,3.084]
[1672866305001,2.5,1252.8,1252.6,3.084]
[1672866305211,2.5,1252.8,1252.6,6.0913]
[1672866305955,1.78003895,1252.9,1252.7,9.587]
[1672866306160,7.28733895,1253.0,1252.7,9.587]
[1672866306366,7.28733895,1253.0,1252.8,2.5]
[1672866306889,7.28733895,1253.0,1252.7,9.587]
[1672866307739,7.28733895,1253.0,1252.7,1.598]
[1672866308374,1.78003895,1252.9,1252.6,14.0863]
[1672866308683,1.5,1252.8,1252.6,14.0863]
[1672866309739,1.5,1252.8,1252.6,12.5863]
[1672866310466,1.5,1252.8,1252.6,4.5973]
[1672866310672,6.28733895,1252.8,1252.5,1.594]
[1672866311302,1.5,1252.8,1252.5,14.583]
[1672866311516,1.5,1252.8,1252.6,2.5]
[1672866311936,1.5,1252.8,1252.5,14.583]
[1672866312151,3.28003895,1252.8,1252.5,14.583]
[1672866312360,3.28003895,1252.8,1252.6,2.5]
[1672866312784,1.5,1252.8,1252.6,2.5]
[1672866313412,1.5,1252.8,1252.5,14.583]
[1672866313628,3.28003895,1252.8,1252.5,14.583]
[1672866314153,3.28003895,1252.8,1252.5,15.77800686]
[1672866315518,3.28003895,1252.8,1252.5,9.583]
[1672866315728,5.6571643,1252.8,1252.5,9.583]
[1672866316351,1.78003895,1252.7,1252.5,9.583]
[1672866316995,1.78003895,1252.7,1252.5,10.77800686]
[1672866317300,1.78003895,1252.7,1252.5,15.77800686]
[1672866317517,5.6571643,1252.8,1252.5,15.77800686]
[1672866317933,1.78003895,1252.7,1252.5,15.77800686]
[1672866318984,1.78003895,1252.7,1252.5,17.57051716]
[1672866320032,1.78003895,1252.6,1252.5,17.57051716]
[1672866320249,1.78003895,1252.6,1252.5,16.3755103]
[1672866320459,1.78003895,1252.6,1252.5,8.3865103]
[1672866320666,1.78003895,1252.6,1252.5,9.58056611]
[1672866320983,1.78003895,1252.6,1252.5,2.98656611]
[1672866321194,2.37712535,1252.6,1252.4,2.98656611]
[1672866321405,1.78955109,1252.5,1252.4,2.98656611]
[1672866322342,1.78955109,1252.5,1252.4,15.56586611]
[1672866322559,1.78955109,1252.6,1252.4,16.76513615]
[1672866322770,4.16667644,1252.6,1252.5,1.19404324]
[1672866322987,4.16675563,1252.6,1252.5,3.69404324]
[1672866323507,4.16675563,1252.6,1252.5,1.19404324]
[1672866324447,2.37712535,1252.6,1252.5,1.19404324]
[1672866325288,1.78935337,1252.6,1252.5,2.77804324]
[1672866325506,1.78935337,1252.6,1252.5,13.26704324]
[1672866325816,4.16647872,1252.7,1252.5,16.25883615]
[1672866326026,1.78935337,1252.7,1252.6,9.09185885]
[1672866326657,1.78935337,1252.7,1252.6,7.8978103]
[1672866327079,1.78935337,1252.7,1252.6,6.3978103]
[1672866327289,1.78935337,1252.7,1252.6,7.59175784]
[1672866327493,1.78935337,1252.7,1252.6,9.09175784]
[1672866327702,1.78935337,1252.7,1252.6,7.29924754]
[1672866327914,1.78935337,1252.7,1252.6,9.09175784]
[1672866328335,1.78935337,1252.7,1252.6,15.8868103]
[1672866328545,1.78935337,1252.8,1252.6,17.90237385]
[1672866328754,1.78935337,1252.8,1252.7,4.57879113]
[1672866330439,1.78935337,1252.8,1252.7,2.78791645]
[1672866330440,5.66693445,1252.8,1252.7,2.78791645]
[1672866330641,5.66693788,1252.8,1252.7,2.78791645]
[1672866330852,3.87712535,1252.8,1252.7,2.78791645]
[1672866331380,3.87712535,1252.8,1252.7,1.594]
[1672866331698,3.87712535,1252.8,1252.7,1.584]
[1672866332014,6.86694456,1252.8,1252.7,1.584]
[1672866332326,4.48030287,1252.8,1252.7,1.584]
[1672866332749,4.48030287,1252.8,1252.6,4.20121645]
[1672866332958,4.17704051,1252.7,1252.6,4.20121645]
[1672866333372,4.17704051,1252.7,1252.6,1.19391645]
[1672866333584,2.38688029,1252.7,1252.6,1.19391645]
[1672866334006,4.17696846,1252.7,1252.6,1.19391645]
[1672866334747,2.38688029,1252.7,1252.6,1.19391645]
[1672866335695,2.38688029,1252.7,1252.6,3.69391645]
[1672866336113,2.38688029,1252.7,1252.5,20.57509113]
[1672866336331,1.79049595,1252.6,1252.5,14.38117468]
[1672866337270,1.79049595,1252.6,1252.5,15.57551959]
[1672866337797,1.79049595,1252.6,1252.5,15.57561755]
[1672866338430,4.17737624,1252.6,1252.5,14.38117468]
[1672866338843,4.17737624,1252.6,1252.5,15.57590082]
[1672866339997,2.38688029,1252.6,1252.5,15.57590082]
[1672866340208,2.98030287,1252.6,1252.5,1.19472614]
[1672866341471,5.98760287,1252.6,1252.5,1.19472614]
[1672866343788,5.98760287,1252.6,1252.5,2.98560082]
[1672866345468,2.98030287,1252.6,1252.5,2.98560082]
[1672866345677,2.98030287,1252.6,1252.5,1.19472614]
[1672866349035,8.17717409,1252.7,1252.4,2.98560082]
[1672866349250,2.98717456,1252.5,1252.4,2.98560082]
[1672866349777,5.37694952,1252.5,1252.4,2.98560082]
[1672866350189,2.38977496,1252.5,1252.4,2.98560082]
[1672866350612,5.37694952,1252.5,1252.4,2.98560082]
[1672866353867,2.38977496,1252.5,1252.4,2.98560082]
[1672866357447,4.18151081,1252.5,1252.4,4.18615742]
[1672866357651,4.18151081,1252.5,1252.4,8.28015742]
[1672866357970,1.79173585,1252.5,1252.4,8.28015742]
[1672866358180,1.79173585,1252.5,1252.4,9.49462585]
[1672866359751,1.79173585,1252.5,1252.4,8.78753338]
[1672866359962,4.18151081,1252.5,1252.4,8.78753338]
[1672866361746,1.79173585,1252.5,1252.4,22.48762585]
[1672866362276,1.79173585,1252.5,1252.4,21.78041233]
[1672866362277,4.18151081,1252.5,1252.4,21.78041233]
[1672866362488,1.79173585,1252.5,1252.4,21.78041233]
[1672866363120,1.79173585,1252.5,1252.4,19.98762585]
[1672866364705,1.79173585,1252.5,1252.4,21.7804213]
[1672866364909,1.78524178,1252.5,1252.4,19.98762585]
[1672866366281,1.78524178,1252.5,1252.4,21.40264003]
[1672866366492,1.78524178,1252.5,1252.4,19.98762585]
[1672866367326,1.78524178,1252.5,1252.4,21.78051043]
[1672866367747,4.17501674,1252.5,1252.4,13.79151043]
[1672866368060,2.38977496,1252.5,1252.4,13.79151043]
[1672866369014,2.38977496,1252.5,1252.4,10.78421043]
[1672866369429,2.38977496,1252.5,1252.4,8.39088458]
[1672866369852,2.38977496,1252.5,1252.4,5.78421043]
[1672866370272,2.38977496,1252.5,1252.4,3.99132585]
[1672866371736,2.38977496,1252.5,1252.4,5.40636178]
[1672866372587,2.38977496,1252.5,1252.4,3.99132585]
[1672866372793,2.38977496,1252.5,1252.4,4.18771665]
[1672866373634,2.38977496,1252.5,1252.4,4.18776209]
[1672866373850,5.37694952,1252.5,1252.4,2.39332585]
[1672866375220,2.38977496,1252.5,1252.4,3.80840301]
[1672866375958,5.37694952,1252.5,1252.4,3.80840301]
[1672866376481,2.38977496,1252.5,1252.4,3.80840301]
[1672866376900,5.37694952,1252.5,1252.4,3.80840301]
[1672866377214,2.38977496,1252.5,1252.4,3.80840301]
[1672866377639,5.37694952,1252.5,1252.4,3.80840301]
[1672866378373,2.98717456,1252.5,1252.4,3.80840301]
[1672866378572,2.98717456,1252.5,1252.4,2.39332585]
[1672866379843,2.98717456,1252.5,1252.4,3.80842831]
[1672866380048,2.98717456,1252.5,1252.4,3.80843104]
[1672866380263,2.98717456,1252.5,1252.4,3.80843065]
[1672866380889,2.98717456,1252.5,1252.4,2.39332585]
[1672866381098,2.98717456,1252.5,1252.4,3.80843219]
[1672866384680,5.37993797,1252.5,1252.4,3.80843219]
[1672866385101,2.98717456,1252.5,1252.4,3.80843219]
[1672866386156,5.37989017,1252.5,1252.4,3.80843219]
[1672866387195,2.98717456,1252.5,1252.4,3.80843219]
[1672866388675,2.98717456,1252.5,1252.4,2.39332585]
[1672866388984,2.98717456,1252.5,1252.4,3.80841591]
[1672866389933,2.98717456,1252.5,1252.4,2.39332585]
[1672866390142,2.98717456,1252.5,1252.4,4.18898266]
[1672866390566,2.98717456,1252.5,1252.4,2.39332585]
[1672866392037,2.98717456,1252.5,1252.4,3.80843975]
[1672866392348,2.98717456,1252.5,1252.4,2.39332585]
[1672866392879,2.98717456,1252.5,1252.4,3.8084335]
[1672866394979,2.98717456,1252.5,1252.4,5.4024335]
[1672866396241,2.98717456,1252.5,1252.4,8.39528158]
[1672866397074,2.98717456,1252.5,1252.4,5.4024335]
[1672866401604,2.98717456,1252.5,1252.4,5.78738329]
[1672866402238,6.59417409,1252.6,1252.4,3.39405744]
[1672866402439,6.59417409,1252.6,1252.5,1.19739748]
[1672866405482,6.59417409,1252.6,1252.5,2.99345492]
[1672866406016,3.0073,1252.6,1252.5,2.99345492]
[1672866406855,6.59417409,1252.6,1252.5,2.99345492]
[1672866407280,3.0073,1252.6,1252.5,2.99345492]
[1672866408750,6.59417409,1252.6,1252.5,2.99345492]
[1672866409600,3.0073,1252.6,1252.5,2.99345492]
[1672866410218,6.59417409,1252.6,1252.5,2.99345492]
[1672866413686,3.0073,1252.6,1252.5,2.99345492]
[1672866414002,6.59417409,1252.6,1252.5,2.99345492]
[1672866414320,3.0073,1252.6,1252.5,2.99345492]
[1672866414943,4.6053,1252.6,1252.5,2.99345492]
[1672866416210,8.19217409,1252.6,1252.5,2.99345492]
[1672866416418,4.6053,1252.6,1252.5,2.99345492]
[1672866417788,8.19217409,1252.6,1252.5,2.99345492]
[1672866418836,8.19217409,1252.6,1252.5,2.9893565]
[1672866421467,8.19217409,1252.6,1252.5,1.19329906]
[1672866422629,8.19217409,1252.6,1252.5,2.9893565]
[1672866422839,8.19217409,1252.6,1252.5,1.19329906]
[1672866424930,5.18487409,1252.6,1252.5,1.19329906]
[1672866425147,8.19217409,1252.6,1252.5,1.19329906]
[1672866428409,12.37866247,1252.6,1252.4,1.79605744]
[1672866428718,1.594,1252.5,1252.3,4.18938329]
[1672866428929,3.0073,1252.4,1252.3,4.18894226]
[1672866429135,4.0073,1252.4,1252.3,4.29561641]
[1672866429549,6.99980697,1252.4,1252.3,1.79561641]
[1672866430507,3.99250697,1252.4,1252.3,2.39332585]
[1672866430823,2.99250697,1252.4,1252.3,4.89332585]
[1672866431339,2.39383054,1252.4,1252.3,10.89037117]
[1672866432288,2.39383054,1252.4,1252.3,7.89752309]
[1672866432607,2.39383054,1252.4,1252.3,8.49704532]
[1672866434301,2.39383054,1252.4,1252.3,11.50434532]
[1672866434822,2.39383054,1252.4,1252.3,13.89677734]
[1672866436183,2.39383054,1252.4,1252.3,11.50434532]
[1672866437135,2.39383054,1252.4,1252.3,13.89681524]
[1672866437551,2.39383054,1252.4,1252.3,11.50434532]
[1672866438194,4.18928742,1252.4,1252.3,19.49334532]
[1672866438716,2.39383054,1252.4,1252.3,19.49334532]
[1672866438913,2.39383054,1252.4,1252.3,3.80785999]
[1672866438914,3.98783054,1252.4,1252.3,3.80785999]
[1672866439128,4.5893,1252.4,1252.3,1.7309306]
[1672866439337,4.5893,1252.4,1252.2,2.39266275]
[1672866439547,1.5,1252.2,1252.1,2.39266275]
[1672866439761,1.5,1252.2,1252.0,5.49284808]
[1672866439762,9.08073435,1252.2,1252.0,2.3929711]
[1672866439970,5.6879869,1252.1,1252.0,6.30848241]
[1672866440175,5.68798568,1252.1,1252.0,3.80848241]
[1672866440389,5.68798568,1252.1,1252.0,6.80133049]
[1672866440598,5.68797084,1252.1,1252.0,3.80848241]
[1672866440813,5.68797084,1252.1,1252.0,6.80133049]
[1672866441131,4.18797084,1252.2,1252.0,11.00251131]
[1672866441446,1.79480375,1252.2,1252.1,13.89511173]
[1672866442382,1.79480375,1252.3,1252.1,23.10581131]
[1672866442594,4.18797084,1252.4,1252.2,18.0885506]
[1672866442807,2.39316709,1252.4,1252.3,10.07965011]
[1672866443017,2.39316709,1252.4,1252.3,11.49479241]
[1672866443338,2.39316709,1252.4,1252.3,10.07965011]
[1672866443859,2.39316709,1252.4,1252.3,11.49480099]
[1672866444284,2.39316709,1252.4,1252.3,10.07965011]
[1672866444479,2.39316709,1252.4,1252.3,11.49479991]
[1672866445122,4.18716154,1252.4,1252.3,11.49479991]
[1672866445538,4.18716154,1252.4,1252.3,19.48379991]
[1672866445747,1.79399445,1252.5,1252.3,21.66948909]
[1672866445956,1.79399445,1252.5,1252.4,15.57318909]
[1672866446169,2.99143435,1252.7,1252.4,15.57318909]
[1672866446377,2.99143435,1252.7,1252.6,12.082]
[1672866449642,5.49143435,1252.8,1252.6,12.082]
[1672866449852,2.99143435,1252.7,1252.6,12.082]
[1672866450381,5.49143435,1252.8,1252.6,15.0893]
[1672866452064,5.49143435,1252.8,1252.6,12.082]
[1672866452269,2.99143435,1252.8,1252.6,12.082]
[1672866452486,2.99143435,1252.8,1252.7,1.585]
[1672866454367,2.99143435,1252.9,1252.8,1.596]
[1672866454584,2.99143435,1252.9,1252.8,3.185]
[1672866454785,2.99143435,1252.9,1252.8,5.685]
[1672866454997,5.49143435,1253.0,1252.8,5.685]
[1672866455211,2.99143435,1253.0,1252.9,1.598]
[1672866455631,2.99143435,1253.0,1252.9,3.098]
[1672866456047,2.99143435,1253.0,1252.9,6.1053]
[1672866456258,5.49143435,1253.1,1252.9,6.1053]
[1672866456479,2.99143435,1253.1,1252.9,6.1053]
[1672866456687,2.99143435,1253.2,1253.0,9.587]
[1672866456894,2.99143435,1253.2,1253.1,1.591]
[1672866457537,5.49143435,1253.3,1253.1,1.591]
[1672866457852,4.49143435,1253.2,1253.1,1.591]
[1672866458164,4.49143435,1253.2,1253.1,1.598]
[1672866460898,2.99143435,1253.2,1253.1,1.598]
[1672866461523,5.5073,1253.3,1253.1,1.598]
[1672866461524,8.49873435,1253.3,1253.1,1.598]
[1672866461950,5.49143435,1253.3,1253.1,1.598]
[1672866464048,5.99873435,1253.2,1253.1,1.598]
[1672866464460,5.99873435,1253.2,1252.9,19.0943]
[1672866464678,1.5,1253.1,1252.9,9.6053]
[1672866464890,1.5,1253.1,1252.9,1.598]
[1672866465208,1.598,1253.0,1252.7,4.6053]
[1672866465515,1.598,1253.0,1252.7,1.598]
[1672866465516,4.6053,1253.0,1252.7,1.598]
[1672866466669,1.598,1252.8,1252.5,4.6053]
[1672866466884,1.598,1252.8,1252.5,9.6053]
[1672866467509,2.5,1252.7,1252.5,9.6053]
[1672866470044,1.598,1252.8,1252.5,4.6053]
[1672866470250,2.5,1252.9,1252.6,4.098]
[1672866471611,2.5,1252.9,1252.7,2.5]
[1672866472355,2.5,1252.9,1252.7,5.5073]
[1672866473205,2.5,1252.9,1252.7,2.5]
[1672866473411,2.5,1252.9,1252.6,4.098]
[1672866475620,4.88264086,1252.9,1252.6,4.098]
[1672866477509,4.88264086,1252.9,1252.6,12.087]
[1672866477721,4.88264086,1252.9,1252.8,1.598]
[1672866477920,2.38264086,1252.9,1252.8,1.598]
[1672866481395,2.38264086,1252.9,1252.7,1.591]
[1672866481600,2.38264086,1252.8,1252.7,1.591]
[1672866483295,2.38264086,1252.8,1252.6,7.0963]
[1672866483501,2.38264086,1252.7,1252.6,4.089]
[1672866483707,5.37407521,1252.8,1252.6,4.089]
[1672866484339,2.38264086,1252.8,1252.6,4.089]
[1672866484975,5.37407521,1252.8,1252.6,4.089]
[1672866485388,2.38264086,1252.8,1252.7,1.597]
[1672866485606,2.38264086,1252.9,1252.7,1.597]
[1672866485815,2.38264086,1252.9,1252.8,1.591]
[1672866486124,2.38264086,1252.9,1252.8,4.5983]
[1672866486957,2.38264086,1252.9,1252.8,6.0983]
[1672866489702,2.38264086,1252.9,1252.8,4.5983]
[1672866492015,2.99143435,1252.9,1252.8,1.591]
[1672866499585,6.59417409,1253.0,1252.8,1.591]
[1672866500424,2.98796369,1252.9,1252.8,1.591]
[1672866503581,6.59417409,1253.0,1252.8,1.591]
[1672866503892,10.78066247,1253.0,1252.8,1.591]
[1672866504201,3.58687409,1252.9,1252.7,1.79059866]
[1672866504517,2.99062946,1252.8,1252.7,1.79059866]
[1672866504835,5.99792946,1252.8,1252.7,1.79059866]
[1672866505055,3.0073,1252.8,1252.6,3.37959866]
[1672866505261,2.99070829,1252.7,1252.6,5.76964661]
[1672866505577,2.99070829,1252.7,1252.6,3.37959866]
[1672866508834,2.99070829,1252.7,1252.6,5.87959866]
[1672866509043,2.99070829,1252.7,1252.6,3.37959866]
[1672866509255,2.99070829,1252.7,1252.6,5.87959866]
[1672866509466,5.38294952,1252.7,1252.6,3.37959866]
[1672866510729,2.99070829,1252.7,1252.6,3.37959866]
[1672866511043,2.99070829,1252.7,1252.6,5.87959866]
[1672866511563,2.99070829,1252.7,1252.6,3.37959866]
[1672866512403,2.99070829,1252.7,1252.5,5.77064661]
[1672866512608,2.99070829,1252.7,1252.5,3.38059866]
[1672866512609,2.39209249,1252.6,1252.5,3.38059866]
[1672866513143,2.39209249,1252.6,1252.5,5.77064661]
[1672866514094,4.18599395,1252.6,1252.5,7.89502528]
[1672866514297,2.39209249,1252.6,1252.5,6.48004795]
[1672866514934,2.39209249,1252.6,1252.5,7.89499149]
[1672866515559,2.39209249,1252.6,1252.5,3.98004795]
[1672866516514,2.39209249,1252.6,1252.5,5.77056614]
[1672866516726,2.39209249,1252.6,1252.5,3.38051819]
[1672866517141,5.38280078,1252.6,1252.5,3.38051819]
[1672866517353,2.39209249,1252.6,1252.5,3.38051819]
[1672866519564,5.38280078,1252.6,1252.5,3.38051819]
[1672866519775,2.39209249,1252.6,1252.5,3.38051819]
[1672866521347,2.39209249,1252.6,1252.5,8.38051819]
[1672866522511,2.39209249,1252.6,1252.5,3.38051819]
[1672866525768,5.38280078,1252.6,1252.5,3.38051819]
[1672866526291,5.38280078,1252.6,1252.5,1.595]
[1672866526496,5.99800829,1252.6,1252.5,1.595]
[1672866527971,8.38843752,1252.6,1252.5,1.595]
[1672866529763,5.38113752,1252.6,1252.5,1.595]
[1672866529974,5.38113752,1252.6,1252.5,3.38551819]
[1672866530185,5.38113752,1252.6,1252.5,1.595]
[1672866530716,5.38113752,1252.6,1252.4,5.76456614]
[1672866531024,1.79304507,1252.5,1252.4,5.76456614]
[1672866531232,4.1834743,1252.5,1252.4,5.76456614]
[1672866531652,2.39042923,1252.5,1252.4,3.37451819]
[1672866532605,4.18349122,1252.5,1252.4,3.37451819]
[1672866533655,1.79306199,1252.5,1252.4,6.47404795]
[1672866533866,1.79306199,1252.5,1252.4,3.97404795]
[1672866534283,4.18349122,1252.5,1252.4,5.76558908]
[1672866535020,2.39042923,1252.5,1252.4,5.76558908]
[1672866535232,4.18359656,1252.5,1252.4,5.76558908]
[1672866535647,2.39042923,1252.5,1252.4,3.37554113]
[1672866538164,2.39042923,1252.5,1252.4,5.76558908]
[1672866538375,4.18380811,1252.5,1252.4,5.76558908]
[1672866539649,4.18380811,1252.5,1252.4,8.26558908]
[1672866539849,4.18380811,1252.5,1252.4,5.76558908]
[1672866540170,2.39042923,1252.5,1252.4,3.97404795]
[1672866540376,4.18399022,1252.5,1252.4,3.97404795]
[1672866540590,2.39042923,1252.5,1252.4,5.76625437]
[1672866540908,2.39042923,1252.5,1252.4,3.97404795]
[1672866541423,4.1839979,1252.5,1252.4,3.97404795]
[1672866542158,2.39042923,1252.5,1252.4,5.38909892]
[1672866542578,2.39042923,1252.5,1252.4,10.00139892]
[1672866542795,1.7940175,1252.5,1252.4,13.09939026]
[1672866543844,1.7940175,1252.5,1252.4,10.59939026]
[1672866544058,1.7940175,1252.5,1252.4,13.09939026]
[1672866545109,1.7940175,1252.5,1252.4,21.08839026]
[1672866546146,1.7940175,1252.5,1252.4,23.47906272]
[1672866546362,4.18444673,1252.5,1252.4,23.47906272]
[1672866546566,1.7940175,1252.5,1252.4,21.08839026]
[1672866548470,1.7940175,1252.5,1252.4,18.08109026]
[1672866548781,1.7940175,1252.5,1252.4,21.08839026]
[1672866549202,4.18444673,1252.5,1252.4,21.08839026]
[1672866549726,2.39042923,1252.5,1252.4,20.97954932]
[1672866549937,4.18506003,1252.5,1252.4,20.97954932]
[1672866550248,4.18506003,1252.5,1252.4,6.99521003]